bitfinex/quotes_ETHUSD_20241009
["timestamp","ask_amount","ask_price","bid_price","bid_amount"]
[1728486404908,4.08763,2446.4,2446.3,5.55]
[1728486405217,4.08763,2446.4,2446.3,5.0]
[1728486405218,4.1767617,2446.4,2446.3,5.0]
[1728486405415,5.00318687,2446.4,2446.3,5.0]
[1728486407449,0.91555687,2446.4,2446.0,6.63889681]
[1728486407655,4.08814,2446.1,2446.0,7.18889681]
[1728486407811,4.1772717,2446.1,2446.0,6.63889681]
[1728486408145,4.08814,2446.1,2446.0,6.63889681]
[1728486408335,4.08814,2446.1,2446.0,6.69888444]
[1728486409084,4.088,2446.2,2446.0,6.69888444]
[1728486409372,4.08771,2446.4,2446.3,5.0]
[1728486409577,4.08771,2446.4,2446.3,6.69913255]
[1728486410175,4.08771,2446.4,2446.3,5.0]
[1728486410479,4.07771,2446.4,2446.3,5.0]
[1728486411139,4.06771,2446.4,2446.3,5.0]
[1728486411683,4.05771,2446.4,2446.3,5.0]
[1728486411889,4.04771,2446.4,2446.3,5.0]
[1728486412175,4.861231,2446.4,2446.3,5.0]
[1728486412339,4.851231,2446.4,2446.3,5.0]
[1728486412534,4.0875,2446.5,2446.3,5.0]
[1728486412754,4.0775,2446.5,2446.3,5.0]
[1728486412952,0.004,2446.4,2446.3,5.55]
[1728486413166,0.016,2446.4,2446.3,5.55]
[1728486413485,0.03199862,2446.4,2446.3,5.55]
[1728486413834,0.01999862,2446.4,2446.3,5.55]
[1728486414035,4.09962862,2446.4,2446.3,5.55]
[1728486414244,4.09162862,2446.4,2446.3,5.55]
[1728486414473,4.09562862,2446.4,2446.3,5.55]
[1728486414785,0.016,2446.4,2446.3,10.1928]
[1728486415076,0.016,2446.4,2446.3,13.6114]
[1728486415384,0.004,2446.4,2446.3,14.32554294]
[1728486415670,4.08634,2447.2,2446.9,0.55]
[1728486415874,4.08663,2447.0,2446.9,0.55]
[1728486416237,4.08663,2447.0,2446.8,5.55]
[1728486416661,4.08665,2447.0,2446.8,5.55]
[1728486417073,4.0868,2446.9,2446.8,5.55]
[1728486417378,4.0868,2446.9,2446.8,5.0]
[1728486418338,4.08667,2447.0,2446.8,5.55]
[1728486419183,4.07667,2447.0,2446.8,5.55]
[1728486419364,4.0868,2446.9,2446.8,5.55]
[1728486419752,4.0768,2446.9,2446.8,5.55]
[1728486420367,4.319,2448.7,2447.1,5.0]
[1728486420368,4.08603,2447.4,2447.1,5.0]
[1728486420714,4.10592,2447.5,2447.4,5.0]
[1728486420984,0.008,2447.5,2447.4,5.0]
[1728486421284,4.08565,2447.6,2447.4,5.0]
[1728486421602,0.0294779,2447.7,2447.5,0.55]
[1728486421741,0.0214779,2447.7,2447.5,0.55]
[1728486422173,4.1069779,2447.7,2447.5,0.55]
[1728486422392,0.0214779,2447.7,2447.6,0.9686]
[1728486423059,0.0214779,2447.7,2447.6,5.05423]
[1728486423775,0.0214779,2447.7,2447.6,8.05423]
[1728486424896,0.02799862,2448.8,2448.5,5.0]
[1728486425286,0.8268,2448.5,2448.2,5.0]
[1728486425488,0.8268,2448.5,2448.2,9.08451]
[1728486425974,4.1730117,2448.7,2448.5,5.0]
[1728486426177,4.1730117,2448.7,2448.2,5.0]
[1728486426178,4.58327103,2448.6,2448.2,5.0]
[1728486426384,4.08443,2448.4,2448.2,5.0]
[1728486426687,4.08429,2448.5,2448.2,5.0]
[1728486426990,4.08441,2448.4,2448.2,5.0]
[1728486427207,4.09240862,2448.4,2448.2,5.0]
[1728486427380,0.89651275,2448.4,2448.2,5.0]
[1728486427586,0.03199862,2448.4,2448.2,5.0]
[1728486427897,0.024,2448.4,2448.2,5.0]
[1728486428192,0.004,2448.4,2448.2,5.0]
[1728486428377,0.01199862,2448.6,2448.2,5.0]
[1728486428556,0.01999862,2448.6,2448.2,9.08458]
[1728486428759,0.03199862,2448.6,2448.2,9.08458]
[1728486429381,0.03199862,2448.6,2448.2,5.0]
[1728486429570,4.11596862,2448.6,2448.2,5.0]
[1728486429784,5.02405365,2448.6,2448.2,5.0]
[1728486430292,0.94008365,2448.6,2448.5,5.0]
[1728486430500,0.02799862,2448.6,2448.5,5.0]
[1728486430655,0.01999862,2448.6,2448.5,5.0]
[1728486430852,0.00799862,2448.6,2448.5,5.0]
[1728486431055,0.02799862,2448.7,2448.5,5.0]
[1728486431283,0.01599862,2448.7,2448.5,9.08409]
[1728486431467,0.00399862,2448.7,2448.6,4.63396]
[1728486431678,0.028,2448.9,2448.8,5.0]
[1728486432069,0.012,2448.9,2448.8,5.0]
[1728486432270,0.012,2448.9,2448.8,12.63363]
[1728486432271,0.004,2448.9,2448.8,12.63363]
[1728486432600,0.024,2449.1,2448.8,5.4186]
[1728486432773,0.012,2449.1,2448.8,5.0]
[1728486432972,4.89583,2449.1,2448.8,5.0]
[1728486433270,4.08346,2448.9,2448.8,5.0]
[1728486433472,0.5787147,2449.0,2448.5,5.0]
[1728486433670,4.08754,2448.9,2448.5,5.0]
[1728486433869,0.01199862,2448.6,2448.5,5.0]
[1728486434092,4.10395862,2448.6,2448.2,5.0]
[1728486434302,0.004,2448.3,2447.9,5.0]
[1728486434482,0.01199862,2448.3,2447.9,5.0]
[1728486434682,4.08896,2448.0,2447.9,5.0]
[1728486434897,4.08896,2448.0,2447.6,5.0]
[1728486434898,4.08514,2447.9,2447.6,5.0]
[1728486435204,4.90136,2448.0,2447.6,5.0]
[1728486435205,0.00799862,2447.7,2447.6,5.0]
[1728486435383,0.01599862,2447.7,2447.6,9.08563]
[1728486435633,0.01999862,2447.7,2447.6,9.08563]
[1728486435773,0.02799862,2447.7,2447.6,9.08563]
[1728486436362,0.01599862,2447.7,2447.6,13.40277]
[1728486436567,0.008,2447.7,2447.6,13.82137]
[1728486436793,0.03199862,2448.3,2448.2,5.55]
[1728486437304,0.03199862,2448.3,2448.2,9.63463]
[1728486437656,0.03199862,2448.3,2448.2,5.55]
[1728486437862,0.03199862,2448.3,2448.2,9.63463]
[1728486438275,0.02399862,2448.3,2448.2,5.55]
[1728486438572,0.004,2448.3,2448.2,5.0]
[1728486438795,0.02799862,2448.6,2448.2,5.0]
[1728486438796,0.03199862,2448.6,2448.5,5.0]
[1728486441163,4.61289865,2448.6,2448.5,5.0]
[1728486441366,4.61289865,2448.6,2447.6,8.82136]
[1728486441367,4.08446,2448.3,2448.2,5.0]
[1728486441673,9.53622964,2448.3,2447.6,5.0]
[1728486441980,5.12741466,2448.2,2447.9,5.0]
[1728486442278,4.08533,2447.8,2447.6,5.0]
[1728486442592,4.08533,2447.8,2447.3,0.4186]
[1728486442593,4.08585,2447.5,2447.3,5.0]
[1728486442798,4.9999417,2447.7,2447.3,5.0]
[1728486442967,4.08596,2447.4,2447.3,5.0]
[1728486443365,4.0862,2447.3,2447.0,5.0]
[1728486444011,4.0902,2447.3,2447.0,5.0]
[1728486444305,4.1022,2447.3,2447.0,5.0]
[1728486444810,8.71291964,2447.1,2447.0,5.0]
[1728486445022,4.08697,2446.8,2446.7,5.0]
[1728486445222,5.59578477,2447.1,2446.3,4.08766]
[1728486445223,8.71339964,2446.9,2446.4,5.0]
[1728486445508,0.0891317,2446.8,2446.4,5.0]
[1728486445712,0.004,2446.6,2446.4,5.0]
[1728486445872,4.09938862,2446.6,2446.4,5.0]
[1728486446074,0.02399862,2446.6,2446.4,5.0]
[1728486446304,0.03199862,2446.6,2446.4,5.0]
[1728486446934,4.20845032,2446.6,2446.4,5.0]
[1728486447089,4.20843032,2446.6,2446.4,5.0]
[1728486447293,4.08747,2446.5,2446.4,5.0]
[1728486447588,4.08747,2446.5,2446.1,5.0]
[1728486447794,0.008,2446.3,2446.1,5.0]
[1728486447991,0.008,2446.3,2446.0,5.0]
[1728486447992,0.016,2446.3,2446.0,5.0]
[1728486448234,4.0881,2446.2,2446.0,5.0]
[1728486448817,4.11991862,2446.3,2446.0,5.0]
[1728486449135,4.11991862,2446.3,2446.0,9.08826]
[1728486449136,0.03199862,2446.3,2446.0,9.08826]
[1728486449434,0.02799862,2446.3,2446.2,4.08797]
[1728486449647,0.016,2446.3,2446.2,4.08797]
[1728486449938,0.004,2446.3,2446.2,4.08797]
[1728486450102,0.02799862,2446.7,2446.5,9.08736]
[1728486450307,0.016,2446.7,2446.5,9.08736]
[1728486450505,0.012,2446.7,2446.5,9.08746]
[1728486450808,0.02,2446.9,2446.5,9.08746]
[1728486451010,0.03199862,2446.9,2446.5,9.08746]
[1728486451234,0.03199862,2446.9,2446.2,35.55]
[1728486451235,0.03199862,2446.9,2446.8,5.0]
[1728486451442,0.02399862,2446.9,2446.8,9.63697]
[1728486451738,0.00799862,2446.9,2446.8,9.63697]
[1728486451948,0.8132,2447.5,2447.2,5.0]
[1728486451949,0.00799862,2447.3,2447.2,5.0]
[1728486452157,0.01999862,2447.3,2447.2,5.0]
[1728486452291,0.02799862,2447.3,2447.2,5.0]
[1728486452490,4.11812862,2447.3,2447.2,5.0]
[1728486453152,0.03199862,2447.3,2447.2,5.0]
[1728486455403,0.03199862,2447.3,2447.2,9.0863]
[1728486455600,0.03199862,2447.3,2447.2,10.953568]
[1728486455830,0.02399862,2447.3,2447.2,10.953568]
[1728486456144,0.008,2447.3,2447.2,10.953568]
[1728486456300,8.94811,2447.8,2447.5,5.0]
[1728486456496,4.86268,2447.8,2447.5,5.0]
[1728486457497,0.7773,2447.8,2447.5,5.0]
[1728486457693,4.08563,2447.6,2447.5,5.0]
[1728486457897,4.1787617,2447.6,2447.5,5.0]
[1728486458098,4.1907617,2447.6,2447.5,5.0]
[1728486458399,4.20676032,2447.6,2447.5,5.0]
[1728486461420,0.12113032,2447.6,2447.5,5.0]
[1728486461630,0.03199862,2447.6,2447.5,5.0]
[1728486462699,0.02799862,2447.6,2447.5,5.0]
[1728486462934,0.01999862,2447.6,2447.5,10.544396]
[1728486463143,0.01999862,2447.6,2447.5,10.962996]
[1728486463144,0.012,2447.6,2447.5,10.962996]
[1728486463443,0.02399862,2447.9,2447.8,9.0853]
[1728486463597,0.02399862,2447.9,2447.8,9.6353]
[1728486463598,0.01599862,2447.9,2447.8,9.6353]
[1728486463797,0.004,2447.9,2447.8,9.6353]
[1728486464042,0.004,2448.2,2448.1,5.0]
[1728486464217,0.03199862,2448.3,2448.1,5.0]
[1728486464535,8.20116862,2448.3,2448.1,5.0]
[1728486464743,4.11657862,2448.3,2448.1,5.0]
[1728486465300,0.03199862,2448.3,2448.1,5.0]
[1728486465496,0.12113032,2448.3,2448.1,5.0]
[1728486465749,4.20567032,2448.3,2448.1,5.0]
[1728486465950,4.20567032,2448.3,2447.8,5.0]
[1728486465951,4.0848,2448.1,2447.8,5.0]
[1728486466185,0.0891317,2448.0,2447.8,5.0]
[1728486466348,4.08481,2448.1,2447.8,5.0]
[1728486466552,4.1737617,2448.2,2447.8,5.0]
[1728486466995,0.03199862,2448.3,2447.9,4.08504]
[1728486468786,0.03199862,2448.3,2448.1,9.08478]
[1728486468787,0.02399862,2448.3,2448.1,9.08478]
[1728486468952,0.016,2448.3,2448.1,5.0]
[1728486469156,4.08848,2448.3,2448.1,5.0]
[1728486469500,4.08463,2448.2,2448.1,5.0]
[1728486469671,4.1736117,2448.3,2448.1,5.0]
[1728486471283,0.0891317,2448.3,2448.1,5.0]
[1728486471486,4.1736817,2448.3,2448.1,5.0]
[1728486471700,4.08463,2448.2,2448.1,5.0]
[1728486471860,4.1737617,2448.2,2448.1,5.0]
[1728486472256,5.08082273,2448.2,2448.1,5.0]
[1728486472895,5.08082273,2448.2,2447.8,5.0]
[1728486473236,4.085,2448.0,2447.8,5.0]
[1728486473514,4.08563,2447.6,2447.2,5.0]
[1728486473797,4.08533,2447.8,2447.5,5.0]
[1728486474008,0.004,2447.7,2447.5,5.0]
[1728486474161,0.012,2447.7,2447.5,5.0]
[1728486474364,0.11313032,2447.7,2447.5,5.0]
[1728486474596,0.12113032,2447.7,2447.5,5.0]
[1728486474867,0.03199862,2447.7,2447.5,5.0]
[1728486475514,0.03199862,2447.7,2447.5,9.08571]
[1728486475696,0.02799862,2447.7,2447.5,9.08571]
[1728486476015,0.02799862,2447.7,2447.6,4.08563]
[1728486476016,0.012,2447.7,2447.6,4.08563]
[1728486476298,0.12113032,2448.1,2447.6,4.08563]
[1728486476504,4.20599032,2448.1,2447.6,8.17118]
[1728486476807,4.20599032,2448.1,2447.7,4.08543]
[1728486477031,4.08498,2448.0,2447.6,4.08555]
[1728486477328,4.08498,2448.0,2447.5,6.317165]
[1728486477329,4.08521,2447.9,2447.5,5.0]
[1728486477481,4.1741117,2448.0,2447.5,9.08571]
[1728486477482,4.08498,2448.0,2447.5,9.08571]
[1728486477683,4.08514,2447.9,2447.5,9.08571]
[1728486478093,0.03199862,2448.1,2447.5,9.08571]
[1728486478315,4.08497,2448.0,2447.5,9.08571]
[1728486478723,4.08516,2447.9,2447.5,5.0]
[1728486478929,4.0854,2447.8,2447.5,5.0]
[1728486479224,0.01999862,2447.9,2447.5,5.0]
[1728486479429,0.02799862,2447.9,2447.5,9.08577]
[1728486479725,4.11727862,2447.9,2447.5,5.0]
[1728486480033,4.08537,2447.8,2447.5,5.0]
[1728486480185,4.11724862,2447.9,2447.5,5.0]
[1728486480700,4.08963,2447.6,2447.2,5.0]
[1728486480895,0.0891317,2447.5,2447.2,5.0]
[1728486481109,4.1749317,2447.5,2447.2,5.0]
[1728486481300,0.0891317,2447.5,2447.2,5.0]
[1728486481502,0.01599862,2447.3,2447.2,10.036766]
[1728486481689,0.01599862,2447.3,2447.2,10.455366]
[1728486482244,0.01599862,2447.3,2447.2,11.005366]
[1728486482529,0.00799862,2447.3,2447.2,11.005366]
[1728486482735,4.11714862,2447.9,2447.5,5.0]
[1728486482889,4.11714862,2447.9,2447.5,9.08578]
[1728486483386,0.03199862,2447.9,2447.5,9.08578]
[1728486483592,0.03199862,2447.9,2447.6,4.08562]
[1728486484333,0.03199862,2447.9,2447.8,9.0853]
[1728486484552,0.02399862,2447.9,2447.8,9.5039]
[1728486484713,0.02399862,2447.9,2447.8,10.0539]
[1728486484714,0.016,2447.9,2447.8,10.0539]
[1728486484919,0.004,2447.9,2447.8,11.5995358]
[1728486485227,4.08507,2448.0,2447.8,5.0]
[1728486485562,0.02399862,2448.1,2447.8,9.0853]
[1728486485741,0.02799862,2448.1,2447.8,9.0853]
[1728486486055,0.03199862,2448.1,2447.8,9.0853]
[1728486486227,0.03199862,2448.1,2447.9,4.08513]
[1728486487254,0.03199862,2448.1,2447.8,5.0]
[1728486487431,4.11686862,2448.1,2447.8,5.0]
[1728486487755,4.11686862,2448.1,2447.5,5.0]
[1728486487756,4.08513,2447.9,2447.5,5.0]
[1728486487956,4.08563,2447.6,2447.5,5.0]
[1728486488138,4.08563,2447.6,2447.2,5.036716]
[1728486488139,3.84311052,2447.6,2447.2,5.0]
[1728486488338,4.08613,2447.3,2447.2,5.0]
[1728486488559,3.75397882,2447.4,2447.2,5.0]
[1728486488770,4.08582,2447.5,2447.2,5.0]
[1728486489057,4.89948,2447.7,2447.2,5.0]
[1728486489265,4.08587,2447.5,2447.2,5.0]
[1728486489440,3.75397882,2447.6,2447.2,5.0]
[1728486489650,4.89948,2447.7,2447.3,4.08612]
[1728486489831,4.9886117,2447.7,2447.3,4.08612]
[1728486490446,4.08564,2447.6,2447.2,5.0]
[1728486490825,4.9886017,2447.7,2447.2,9.08628]
[1728486492241,4.9886017,2447.7,2447.3,4.08611]
[1728486492436,4.08564,2447.6,2447.2,9.08629]
[1728486492748,4.1747717,2447.6,2447.2,5.0]
[1728486492954,8.2605017,2447.6,2447.2,5.0]
[1728486493152,8.1714,2447.6,2447.2,5.0]
[1728486493326,4.08582,2447.5,2447.2,5.0]
[1728486493528,4.08604,2447.4,2447.2,5.0]
[1728486493828,4.08604,2447.4,2446.9,4.08669]
[1728486493829,4.87899,2447.2,2446.9,5.0]
[1728486494029,0.0891317,2447.1,2446.9,5.0]
[1728486494470,4.1756017,2447.1,2446.9,5.0]
[1728486494983,4.08753,2446.5,2446.3,5.0]
[1728486495131,4.08753,2446.5,2445.4,9.98908504]
[1728486495132,4.08799,2446.2,2446.0,5.0]
[1728486495328,5.38784566,2446.6,2446.1,4.08803]
[1728486495523,4.10665862,2447.0,2446.6,5.0]
[1728486495806,0.02799862,2447.0,2446.6,9.08722]
[1728486495942,0.03199862,2447.0,2446.7,4.08705]
[1728486496126,0.03199862,2447.0,2446.6,10.404643]
[1728486496127,0.03199862,2447.0,2446.6,6.317473]
[1728486496331,0.03199862,2447.0,2446.6,9.08716]
[1728486496550,0.03199862,2447.0,2446.7,4.08703]
[1728486496761,0.03199862,2447.0,2446.9,5.0]
[1728486497047,0.0891317,2447.6,2446.9,10.41725622]
[1728486497244,4.08449,2448.3,2448.0,5.0]
[1728486497446,0.7957,2448.5,2448.0,5.0]
[1728486497447,4.08477,2448.2,2448.0,5.0]
[1728486497654,4.08494,2448.1,2447.7,5.0]
[1728486497880,4.1740717,2448.1,2447.7,5.0]
[1728486498079,0.0891317,2448.1,2447.7,9.08535]
[1728486498243,4.1736217,2448.3,2447.7,9.08535]
[1728486498457,0.7957,2448.5,2448.0,5.0]
[1728486498645,0.0891317,2448.4,2448.0,5.0]
[1728486498846,4.1734717,2448.4,2448.0,5.0]
[1728486499073,4.08459,2448.3,2448.0,5.0]
[1728486499888,4.08434,2448.4,2448.0,5.0]
[1728486500054,4.68172476,2448.4,2448.0,5.0]
[1728486500984,8.76611476,2448.4,2448.0,5.0]
[1728486501282,4.59259306,2448.4,2448.0,5.0]
[1728486501450,4.0845,2448.3,2448.0,5.0]
[1728486501650,0.0891317,2448.3,2448.0,5.0]
[1728486501946,4.1736017,2448.3,2448.0,5.0]
[1728486502165,4.08463,2448.2,2448.0,5.0]
[1728486502367,8.70684566,2448.7,2448.0,5.0]
[1728486502368,0.7969,2448.9,2448.4,4.08418]
[1728486502542,4.08339,2449.0,2448.4,4.08418]
[1728486502543,0.0891317,2449.0,2448.6,9.08386]
[1728486502856,4.08314,2449.1,2448.6,9.08381]
[1728486503064,0.90522417,2449.0,2448.6,13.16767]
[1728486503265,0.90522417,2449.0,2448.6,9.08381]
[1728486503588,4.87997,2449.2,2448.7,4.08378]
[1728486503886,4.87997,2449.2,2448.6,9.08381]
[1728486503887,0.0891317,2449.1,2448.6,9.08381]
[1728486504085,4.1723417,2449.1,2448.6,9.08381]
[1728486504589,4.08339,2449.0,2448.6,5.0]
[1728486504899,4.08371,2448.8,2448.6,5.0]
[1728486505251,0.0891317,2448.7,2448.3,5.0]
[1728486505453,4.08399,2448.6,2448.3,5.0]
[1728486505768,0.0891317,2448.5,2448.3,5.0]
[1728486505970,4.8343,2448.7,2448.3,5.0]
[1728486506750,0.7505,2448.7,2448.3,5.0]
[1728486506985,0.0891317,2448.8,2448.3,5.0]
[1728486507198,4.0838,2448.7,2448.3,5.0]
[1728486507374,4.66508987,2448.8,2448.3,9.08444]
[1728486508703,4.0838,2448.7,2448.3,9.08444]
[1728486508998,4.08398,2448.6,2448.3,5.0]
[1728486509167,0.7505,2449.0,2448.7,5.0]
[1728486509367,4.08363,2448.8,2448.4,9.08429]
[1728486509680,0.483367,2448.9,2448.4,9.08429]
[1728486509681,4.566847,2448.9,2448.7,5.0]
[1728486510159,0.0891317,2448.8,2448.7,5.0]
[1728486510361,4.6559787,2448.9,2448.7,5.0]
[1728486510561,8.7395387,2448.9,2448.7,5.0]
[1728486510826,5.12176557,2448.8,2448.4,5.0]
[1728486511353,1.03813557,2448.8,2448.4,5.0]
[1728486511557,4.0838,2448.7,2448.4,5.0]
[1728486511757,1.03813557,2448.8,2448.4,5.0]
[1728486511758,4.08413,2448.5,2448.4,5.0]
[1728486511978,4.1732617,2448.5,2448.4,5.0]
[1728486513109,4.09213,2448.5,2448.4,5.0]
[1728486513571,4.909739,2448.5,2448.4,5.0]
[1728486513898,4.901739,2448.5,2448.4,5.0]
[1728486514284,4.08413,2448.5,2448.4,5.0]
[1728486515098,4.11593862,2448.7,2448.4,5.0]
[1728486515099,4.08404,2448.6,2448.4,5.0]
[1728486515298,4.1731717,2448.6,2448.4,5.0]
[1728486515459,4.08413,2448.5,2448.4,5.0]
[1728486515664,4.91306003,2448.5,2448.4,5.0]
[1728486516505,4.08813,2448.5,2448.4,5.0]
[1728486516685,4.09213,2448.5,2448.4,5.0]
[1728486516889,4.09612862,2448.5,2448.4,5.0]
[1728486517064,0.88573032,2448.5,2447.8,5.0]
[1728486517268,4.08513,2447.9,2447.8,5.0]
[1728486519205,0.03199862,2448.1,2447.5,5.0]
[1728486519409,4.08563,2447.6,2447.5,5.0]
[1728486519707,4.0855,2447.7,2447.5,5.0]
[1728486519902,4.08525,2447.9,2447.5,5.0]
[1728486520072,4.08524,2447.9,2447.5,5.0]
[1728486520399,4.08531,2447.8,2447.5,5.0]
[1728486522635,0.03199862,2448.1,2447.8,5.0]
[1728486522818,0.02399862,2448.1,2447.8,5.0]
[1728486523002,0.01999862,2448.1,2447.9,4.50372]
[1728486523346,0.008,2448.1,2447.9,4.50372]
[1728486523636,0.03199862,2448.3,2448.1,5.0]
[1728486524216,0.03199862,2448.3,2448.1,6.358863]
[1728486524426,0.03199862,2448.3,2448.2,4.63463]
[1728486525135,0.03199862,2448.3,2448.2,4.70189533]
[1728486525732,0.03199862,2448.3,2448.2,0.61726533]
[1728486525961,0.03199862,2448.3,2448.2,0.55]
[1728486526327,0.02399862,2448.3,2448.2,0.55]
[1728486526528,0.01599862,2448.3,2448.2,0.55]
[1728486526762,0.008,2448.3,2448.2,0.55]
[1728486526967,4.08429,2448.5,2448.4,5.0]
[1728486530930,4.08413,2448.5,2448.4,5.0]
[1728486531131,8.20004862,2448.6,2448.4,5.0]
[1728486531333,4.08413,2448.5,2448.4,5.0]
[1728486533170,4.98028286,2448.5,2448.4,5.0]
[1728486533591,0.89615286,2448.5,2448.1,5.0]
[1728486533897,4.08463,2448.2,2448.1,5.0]
[1728486534874,4.08455,2448.3,2448.1,5.0]
[1728486536390,8.16913,2448.3,2448.1,5.0]
[1728486536593,4.1737617,2448.2,2448.1,5.0]
[1728486536797,4.67018832,2448.2,2448.1,5.0]
[1728486537494,4.08455,2448.3,2448.1,5.0]
[1728486537495,4.10054862,2448.3,2448.1,5.0]
[1728486537805,4.11254862,2448.3,2448.1,5.0]
[1728486537980,4.10855,2448.3,2448.1,5.0]
[1728486538306,4.09655,2448.3,2448.1,5.0]
[1728486538607,4.08463,2448.2,2448.1,5.0]
[1728486539411,0.03199862,2448.5,2448.1,5.0]
[1728486539572,4.08454,2448.3,2448.1,5.0]
[1728486540013,8.16909,2448.3,2448.1,5.0]
[1728486540307,4.08454,2448.3,2448.1,5.0]
[1728486540670,0.02799862,2448.5,2448.4,5.0]
[1728486540876,0.02,2448.5,2448.4,5.0]
[1728486541123,0.008,2448.5,2448.4,5.0]
[1728486541375,4.08405,2448.6,2448.4,5.0]
[1728486541878,8.16815,2448.6,2448.4,5.0]
[1728486542161,4.08405,2448.6,2448.4,5.0]
[1728486542817,8.1681,2448.6,2448.4,5.0]
[1728486543026,4.08413,2448.5,2448.4,5.0]
[1728486545335,4.08405,2448.6,2448.4,5.0]
[1728486545544,8.1681,2448.6,2448.4,5.0]
[1728486545726,4.08413,2448.5,2448.4,5.0]
[1728486546530,4.08405,2448.6,2448.4,5.0]
[1728486546866,4.08413,2448.5,2448.4,5.0]
[1728486547962,4.08413,2448.5,2448.1,5.0]
[1728486547963,4.08463,2448.2,2448.1,5.0]
[1728486548967,4.08563,2447.6,2447.5,12.44]
[1728486549174,4.08563,2447.6,2447.4,0.4186]
[1728486549175,4.08518,2447.9,2447.8,5.0]
[1728486549324,4.08503,2448.0,2447.8,5.0]
[1728486549640,0.008,2448.0,2447.8,9.08518]
[1728486549826,0.012,2448.0,2447.9,5.412248]
[1728486550021,0.012,2448.0,2447.9,1.327118]
[1728486550226,0.012,2448.0,2447.9,1.877118]
[1728486550564,4.08434,2448.4,2448.3,5.0]
[1728486552576,4.08407,2448.6,2448.3,5.0]
[1728486552875,4.08416,2448.5,2448.3,5.0]
[1728486554643,4.08415,2448.5,2448.3,5.0]
[1728486555235,4.08393,2448.7,2448.6,5.0]
[1728486555663,4.08429,2448.4,2448.3,5.0]
[1728486556024,4.08416,2448.5,2448.3,5.0]
[1728486556025,8.16838,2448.5,2448.3,5.0]
[1728486556181,4.08429,2448.4,2448.3,5.0]
[1728486558788,4.0848,2448.1,2448.0,5.0]
[1728486559866,4.08462,2448.3,2448.0,5.0]
[1728486560070,4.08464,2448.2,2448.0,5.0]
[1728486561307,4.08462,2448.3,2448.0,5.0]
[1728486561970,4.08432,2448.4,2448.3,5.0]
[1728486562471,4.08416,2448.5,2448.3,5.0]
[1728486562901,4.08429,2448.4,2448.3,5.0]
[1728486566103,4.08416,2448.5,2448.3,5.0]
[1728486568689,4.97163032,2448.6,2448.3,5.0]
[1728486569017,6.25254004,2448.6,2448.3,5.0]
[1728486569314,6.24854004,2448.6,2448.3,5.0]
[1728486569516,6.15140834,2448.6,2448.3,5.0]
[1728486569673,0.7785,2448.6,2448.3,9.08444]
[1728486569873,0.7665,2448.6,2448.3,5.0]
[1728486570200,0.008,2448.5,2448.3,5.0]
[1728486570371,0.01599862,2448.5,2448.3,5.0]
[1728486570570,0.03199862,2448.5,2448.3,5.0]
[1728486570813,0.01999862,2448.5,2448.3,9.08446]
[1728486571107,0.004,2448.5,2448.3,9.08446]
[1728486571312,0.008,2448.5,2448.3,9.08446]
[1728486571605,0.012,2448.5,2448.3,9.08446]
[1728486571816,0.008,2448.5,2448.3,9.08446]
[1728486572112,0.7665,2448.6,2448.3,5.0]
[1728486572410,0.01599862,2448.5,2448.3,5.0]
[1728486572710,0.03199862,2448.5,2448.3,9.99822422]
[1728486572887,0.024,2448.5,2448.3,9.99822422]
[1728486573087,0.016,2448.5,2448.3,9.99822422]
[1728486573294,0.02399862,2448.5,2448.3,9.99822422]
[1728486573511,0.03199862,2448.5,2448.3,9.99822422]
[1728486573689,4.20533032,2448.5,2448.3,5.0]
[1728486574088,4.08449,2448.3,2448.0,5.0]
[1728486574275,8.60577689,2448.1,2448.0,5.0]
[1728486574480,8.61777551,2448.1,2448.0,5.0]
[1728486574828,8.63377551,2448.1,2448.0,5.0]
[1728486575126,8.63777551,2448.1,2448.0,5.0]
[1728486575830,8.63377551,2448.1,2448.0,5.0]
[1728486575985,8.62577551,2448.1,2448.0,5.0]
[1728486576181,8.61377689,2448.1,2448.0,5.0]
[1728486576386,8.60577689,2448.1,2448.0,5.0]
[1728486576739,9.87482158,2448.1,2447.7,5.0]
[1728486576945,4.0853,2447.8,2447.3,6.69089187]
[1728486577140,0.8565317,2447.7,2447.3,5.0]
[1728486577304,0.7674,2447.7,2447.4,4.08595]
[1728486577703,8.60611689,2447.9,2447.4,4.08587]
[1728486577902,8.60611689,2447.9,2447.4,8.17176]
[1728486578135,4.11697862,2448.0,2447.7,5.0]
[1728486578334,0.7674,2447.9,2447.7,5.0]
[1728486580630,4.11703862,2448.0,2447.7,5.0]
[1728486581332,0.03199862,2448.0,2447.7,5.0]
[1728486581537,0.03199862,2448.0,2447.7,9.08539]
[1728486581727,0.02399862,2448.0,2447.7,9.08539]
[1728486582037,0.012,2448.0,2447.8,4.08518]
[1728486582206,0.03199862,2448.3,2448.2,5.0]
[1728486582396,0.02,2448.3,2448.2,5.0]
[1728486582731,0.004,2448.3,2448.2,5.0]
[1728486582932,0.7674,2448.4,2448.2,5.0]
[1728486583441,7.86977551,2448.5,2448.2,9.0845]
[1728486583442,0.03199862,2448.5,2448.2,9.0845]